[Event "Late-Titled-Tuesday-Blitz-January-16-2024"]
[Site "Chess.com"]
[Date "2024.01.16"]
[Round "5"]
[White "KNVB"]
[Black "VladimirKramnik"]
[Result "0-1"]
[WhiteElo "2694"]
[BlackElo "2914"]
[TimeControl "180+1"]
[EndTime "14:55:27 PST"]
[Termination "VladimirKramnik won on time"]

1. d4 {[%clk 0:03:00.9]} 1... d5 {[%clk 0:02:29.4]} 2. Bf4 {[%clk 0:02:30.5]}
2... c5 {[%clk 0:02:27.9]} 3. e3 {[%clk 0:02:30.6]} 3... Nc6 {[%clk 0:02:27.8]}
4. c3 {[%clk 0:02:30.9]} 4... Nf6 {[%clk 0:02:25]} 5. Nd2 {[%clk 0:02:30.6]}
5... Bf5 {[%clk 0:02:17.2]} 6. Qb3 {[%clk 0:02:20.6]} 6... Na5 {[%clk
0:02:07.7]} 7. Qa4+ {[%clk 0:01:57.8]} 7... Bd7 {[%clk 0:02:06.6]} 8. Qd1 {[%clk
0:01:51.4]} 8... cxd4 {[%clk 0:01:58.5]} 9. exd4 {[%clk 0:01:46.8]} 9... a6
{[%clk 0:01:45.5]} 10. Bd3 {[%clk 0:01:26.6]} 10... Bg4 {[%clk 0:01:37.8]} 11.
Ngf3 {[%clk 0:01:22.1]} 11... e6 {[%clk 0:01:37.6]} 12. O-O {[%clk 0:01:20.8]}
12... Nc6 {[%clk 0:01:36.3]} 13. Re1 {[%clk 0:01:15.4]} 13... Be7 {[%clk
0:01:33.9]} 14. a4 {[%clk 0:01:10.2]} 14... O-O {[%clk 0:01:33.1]} 15. Qb1
{[%clk 0:00:51.6]} 15... Bh5 {[%clk 0:01:26]} 16. Ne5 {[%clk 0:00:49.3]} 16...
Rc8 {[%clk 0:01:24.2]} 17. Ndf3 {[%clk 0:00:39.7]} 17... Bg6 {[%clk 0:01:19.1]}
18. Nxg6 {[%clk 0:00:22.2]} 18... hxg6 {[%clk 0:01:19.6]} 19. g3 {[%clk
0:00:21.9]} 19... Re8 {[%clk 0:01:05.6]} 20. Kg2 {[%clk 0:00:20.5]} 20... Bf8
{[%clk 0:01:03.4]} 21. h4 {[%clk 0:00:13.2]} 21... Ne7 {[%clk 0:00:49.6]} 22.
Ne5 {[%clk 0:00:11.6]} 22... Nf5 {[%clk 0:00:49.4]} 23. Rh1 {[%clk 0:00:10.3]}
23... Bd6 {[%clk 0:00:44.3]} 24. Qe1 {[%clk 0:00:06.4]} 24... Qc7 {[%clk
0:00:30.5]} 25. Qe2 {[%clk 0:00:06.1]} 25... Nh5 {[%clk 0:00:22.8]} 26. Bd2
{[%clk 0:00:02.6]} 26... Nf6 {[%clk 0:00:20.6]} 27. g4 {[%clk 0:00:02.5]} 27...
Ne7 {[%clk 0:00:19.9]} 28. h5 {[%clk 0:00:03]} 28... Bxe5 {[%clk 0:00:11.9]} 29.
dxe5 {[%clk 0:00:02.6]} 29... Ne4 {[%clk 0:00:12.5]} 30. hxg6 {[%clk 0:00:02.2]}
30... Nxg6 {[%clk 0:00:11.7]} 31. Bxe4 {[%clk 0:00:02]} 31... dxe4 {[%clk
0:00:11.6]} 32. Qxe4 {[%clk 0:00:02.9]} 32... Qxe5 {[%clk 0:00:10.4]} 33. Qxe5
{[%clk 0:00:03.2]} 33... Nxe5 {[%clk 0:00:10.4]} 34. Kg3 {[%clk 0:00:03]} 34...
Nc4 {[%clk 0:00:10.9]} 35. Bc1 {[%clk 0:00:03.4]} 35... e5 {[%clk 0:00:11]} 36.
Rb1 {[%clk 0:00:01.8]} 36... f6 {[%clk 0:00:10.6]} 37. b3 {[%clk 0:00:02.1]}
37... Nd6 {[%clk 0:00:10.8]} 38. c4 {[%clk 0:00:02]} 38... Ne4+ {[%clk
0:00:10.9]} 39. Kg2 {[%clk 0:00:02.4]} 39... Nc5 {[%clk 0:00:10.9]} 40. Be3
{[%clk 0:00:02.7]} 40... Ne6 {[%clk 0:00:09.9]} 41. Rhd1 {[%clk 0:00:02.6]}
41... Red8 {[%clk 0:00:10.1]} 42. Kf3 {[%clk 0:00:03]} 42... Kf7 {[%clk
0:00:09.7]} 43. a5 {[%clk 0:00:03.3]} 43... Ke7 {[%clk 0:00:09.1]} 44. Ke4
{[%clk 0:00:03.6]} 44... Rxd1 {[%clk 0:00:09.5]} 45. Rxd1 {[%clk 0:00:04.5]}
45... Rh8 {[%clk 0:00:09.4]} 46. b4 {[%clk 0:00:03.8]} 46... Rc8 {[%clk
0:00:08.7]} 47. Rc1 {[%clk 0:00:03.4]} 47... g6 {[%clk 0:00:08.3]} 48. Bb6
{[%clk 0:00:02.3]} 48... Ng5+ {[%clk 0:00:07.3]} 49. Ke3 {[%clk 0:00:02.8]}
49... f5 {[%clk 0:00:06.8]} 50. gxf5 {[%clk 0:00:03]} 50... gxf5 {[%clk
0:00:07]} 51. f4 {[%clk 0:00:03]} 51... Nf7 {[%clk 0:00:05.1]} 52. Bc5+ {[%clk
0:00:02.9]} 52... Ke6 {[%clk 0:00:04.9]} 53. fxe5 {[%clk 0:00:03.5]} 53... Nxe5
{[%clk 0:00:04.1]} 54. Kd4 {[%clk 0:00:03.7]} 54... Nf3+ {[%clk 0:00:04]} 55.
Ke3 {[%clk 0:00:02.5]} 55... Ng5 {[%clk 0:00:04.5]} 56. Kd4 {[%clk 0:00:02.2]}
56... Ne4 {[%clk 0:00:04.7]} 57. Bb6 {[%clk 0:00:02]} 57... Kf6 {[%clk
0:00:04.1]} 58. Rh1 {[%clk 0:00:02.1]} 58... Rg8 {[%clk 0:00:03.9]} 59. Rh6+
{[%clk 0:00:02.2]} 59... Rg6 {[%clk 0:00:03.6]} 60. Rh7 {[%clk 0:00:02.5]} 60...
Rg7 {[%clk 0:00:03]} 61. Bd8+ {[%clk 0:00:02.8]} 61... Kg6 {[%clk 0:00:02.2]}
62. Rh1 {[%clk 0:00:02.7]} 62... Kf7 {[%clk 0:00:02]} 63. Bb6 {[%clk 0:00:02.8]}
63... Ke6 {[%clk 0:00:02.3]} 64. b5 {[%clk 0:00:03.1]} 64... Rg4 {[%clk
0:00:02.4]} 65. Ke3 {[%clk 0:00:02.5]} 65... Nd6 {[%clk 0:00:01.9]} 66. bxa6
{[%clk 0:00:02.3]} 66... Nxc4+ {[%clk 0:00:01.2]} 67. Kd3 {[%clk 0:00:02.5]}
67... bxa6 {[%clk 0:00:01.8]} 68. Rh6+ {[%clk 0:00:02.9]} 68... Kd5 {[%clk
0:00:02.1]} 69. Rh8 {[%clk 0:00:02.8]} 69... Ne5+ {[%clk 0:00:02.6]} 70. Kc3
{[%clk 0:00:03.1]} 70... Rg3+ {[%clk 0:00:02.8]} 71. Kb4 {[%clk 0:00:03.6]}
71... Nc6+ {[%clk 0:00:02.5]} 72. Ka4 {[%clk 0:00:03.4]} 72... Rg4+ {[%clk
0:00:02.6]} 73. Kb3 {[%clk 0:00:03.9]} 73... Rb4+ {[%clk 0:00:03.2]} 74. Kc3
{[%clk 0:00:03.9]} 74... Rb5 {[%clk 0:00:03.9]} 75. Rf8 {[%clk 0:00:03.3]} 75...
Ke4 {[%clk 0:00:03.5]} 76. Re8+ {[%clk 0:00:03.3]} 76... Kf3 {[%clk 0:00:03.5]}
77. Ra8 {[%clk 0:00:03.3]} 77... Nb4 {[%clk 0:00:02.7]} 78. Bd8 {[%clk
0:00:02.1]} 78... f4 {[%clk 0:00:02.7]} 79. Kc4 {[%clk 0:00:02.1]} 79... Nc6
{[%clk 0:00:02.2]} 80. Bb6 {[%clk 0:00:01.9]} 80... Nxa5+ {[%clk 0:00:02]} 81.
Bxa5 {[%clk 0:00:02.5]} 81... Rxa5 {[%clk 0:00:01.9]} 82. Kb4 {[%clk 0:00:03.1]}
82... Ra1 {[%clk 0:00:02.3]} 83. Kb3 {[%clk 0:00:03.6]} 83... Kf2 {[%clk
0:00:02.7]} 84. Kb2 {[%clk 0:00:03.4]} 84... Ra5 {[%clk 0:00:03.2]} 85. Rh8
{[%clk 0:00:03.2]} 85... f3 {[%clk 0:00:03.8]} 86. Rh2+ {[%clk 0:00:03.5]} 86...
Kg1 {[%clk 0:00:03.8]} 87. Rh6 {[%clk 0:00:03.3]} 87... f2 {[%clk 0:00:04.2]}
88. Rg6+ {[%clk 0:00:03.9]} 88... Kh1 {[%clk 0:00:04.1]} 89. Rh6+ {[%clk
0:00:03.8]} 89... Kg2 {[%clk 0:00:04.7]} 90. Rg6+ {[%clk 0:00:04.4]} 90... Kf1
{[%clk 0:00:05.3]} 91. Kc2 {[%clk 0:00:04.5]} 91... Rf5 {[%clk 0:00:04.6]} 92.
Kd2 {[%clk 0:00:04]} 92... a5 {[%clk 0:00:05.1]} 93. Rg7 {[%clk 0:00:02.7]}
93... a4 {[%clk 0:00:05.3]} 94. Ra7 {[%clk 0:00:01.9]} 94... a3 {[%clk
0:00:05.8]} 95. Rxa3 {[%clk 0:00:01.8]} 95... Kg2 {[%clk 0:00:06.1]} 96. Ra8
{[%clk 0:00:01.5]} 96... f1=Q {[%clk 0:00:06.2]} 97. Rg8+ {[%clk 0:00:01.5]}
97... Kf3 {[%clk 0:00:06.7]} 0-1

[Event "Late-Titled-Tuesday-Blitz-January-16-2024"]
[Site "Chess.com"]
[Date "2024.01.16"]
[Round "6"]
[White "Maxfan2008"]
[Black "aa175"]
[Result "1-0"]
[WhiteElo "2528"]
[BlackElo "2663"]
[TimeControl "180+1"]
[EndTime "14:58:39 PST"]
[Termination "Maxfan2008 won by resignation"]

1. e4 {[%clk 0:03:00.9]} 1... c5 {[%clk 0:03:00.5]} 2. Nf3 {[%clk 0:02:58.5]}
2... d6 {[%clk 0:03:01]} 3. d4 {[%clk 0:02:58.4]} 3... cxd4 {[%clk 0:03:01.9]}
4. Nxd4 {[%clk 0:02:59]} 4... Nf6 {[%clk 0:03:02.3]} 5. Nc3 {[%clk 0:02:59.6]}
5... a6 {[%clk 0:03:02.9]} 6. f4 {[%clk 0:03:00.1]} 6... b5 {[%clk 0:03:01.4]}
7. e5 {[%clk 0:02:59]} 7... b4 {[%clk 0:03:00.4]} 8. Qf3 {[%clk 0:02:34.8]} 8...
dxe5 {[%clk 0:02:52.6]} 9. Qxa8 {[%clk 0:02:32.7]} 9... exd4 {[%clk 0:02:49.8]}
10. Qxb8 {[%clk 0:02:31.7]} 10... bxc3 {[%clk 0:02:44.6]} 11. bxc3 {[%clk
0:02:30.1]} 11... e6 {[%clk 0:02:43.7]} 12. cxd4 {[%clk 0:02:27.2]} 12... Ne4
{[%clk 0:02:39.3]} 13. Bd3 {[%clk 0:02:22.5]} 13... Bd6 {[%clk 0:02:36.3]} 14.
Qa8 {[%clk 0:02:18]} 14... Nc3 {[%clk 0:02:23.4]} 15. Qc6+ {[%clk 0:02:15.4]}
1-0

[Event "Late-Titled-Tuesday-Blitz-January-16-2024"]
[Site "Chess.com"]
[Date "2024.01.16"]
[Round "6"]
[White "Fandorine"]
[Black "FontVella8"]
[Result "1-0"]
[WhiteElo "2964"]
[BlackElo "2757"]
[TimeControl "180+1"]
[EndTime "14:59:03 PST"]
[Termination "Fandorine won by resignation"]

1. c4 {[%clk 0:03:00.9]} 1... e6 {[%clk 0:02:59.9]} 2. g3 {[%clk 0:03:00.8]}
2... d5 {[%clk 0:03:00.3]} 3. Bg2 {[%clk 0:03:01.7]} 3... Nf6 {[%clk 0:03:01]}
4. Nf3 {[%clk 0:03:02.2]} 4... dxc4 {[%clk 0:03:00.6]} 5. Qa4+ {[%clk
0:03:02.6]} 5... Nbd7 {[%clk 0:03:01.2]} 6. Qxc4 {[%clk 0:03:03]} 6... c5 {[%clk
0:03:01.8]} 7. Qc2 {[%clk 0:03:02.2]} 7... Be7 {[%clk 0:03:01.5]} 8. d4 {[%clk
0:02:59.1]} 8... O-O {[%clk 0:02:57]} 9. O-O {[%clk 0:02:58.9]} 9... h6 {[%clk
0:02:46.6]} 10. Rd1 {[%clk 0:02:57.1]} 10... Nd5 {[%clk 0:02:20.9]} 11. a3
{[%clk 0:02:50]} 11... b6 {[%clk 0:02:14]} 12. e4 {[%clk 0:02:48.7]} 12... N5f6
{[%clk 0:02:09.2]} 13. Nc3 {[%clk 0:02:41]} 13... Bb7 {[%clk 0:02:07.9]} 14. d5
{[%clk 0:02:41.2]} 14... exd5 {[%clk 0:02:07.6]} 15. e5 {[%clk 0:02:41.7]} 15...
Ne4 {[%clk 0:02:05.8]} 16. Nxd5 {[%clk 0:02:40.7]} 16... Bxd5 {[%clk 0:02:01.5]}
17. Rxd5 {[%clk 0:02:39.3]} 17... Ng5 {[%clk 0:02:01.8]} 18. Bxg5 {[%clk
0:02:34.4]} 18... Bxg5 {[%clk 0:01:59.6]} 19. Rad1 {[%clk 0:02:30.1]} 1-0

[Event "Late-Titled-Tuesday-Blitz-January-16-2024"]
[Site "Chess.com"]
[Date "2024.01.16"]
[Round "6"]
[White "The_Straightforward_Rook"]
[Black "Goryachkina"]
[Result "0-1"]
[WhiteElo "2471"]
[BlackElo "2685"]
[TimeControl "180+1"]
[EndTime "14:59:55 PST"]
[Termination "Goryachkina won by resignation"]

1. e4 {[%clk 0:02:58.7]} 1... c5 {[%clk 0:03:00.1]} 2. c3 {[%clk 0:02:58.5]}
2... Nf6 {[%clk 0:02:59.7]} 3. e5 {[%clk 0:02:58.6]} 3... Nd5 {[%clk 0:03:00.1]}
4. Nf3 {[%clk 0:02:59.1]} 4... Nc6 {[%clk 0:02:59.5]} 5. Bc4 {[%clk 0:02:58.8]}
5... Nb6 {[%clk 0:02:50.1]} 6. Bb3 {[%clk 0:02:57.9]} 6... c4 {[%clk 0:02:43.8]}
7. Bc2 {[%clk 0:02:57]} 7... d6 {[%clk 0:02:44.1]} 8. exd6 {[%clk 0:02:56.5]}
8... Qxd6 {[%clk 0:02:44.2]} 9. Na3 {[%clk 0:02:54.2]} 9... Bg4 {[%clk
0:02:41.8]} 10. O-O {[%clk 0:02:48.6]} 10... e6 {[%clk 0:02:31.3]} 11. b3 {[%clk
0:02:46]} 11... cxb3 {[%clk 0:02:28.2]} 12. axb3 {[%clk 0:02:46.9]} 12... Qd5
{[%clk 0:02:22.9]} 13. d4 {[%clk 0:02:38.1]} 13... Bd6 {[%clk 0:02:20.7]} 14.
Re1 {[%clk 0:02:36.1]} 14... Qh5 {[%clk 0:02:16.6]} 15. h3 {[%clk 0:02:33.3]}
15... Bxf3 {[%clk 0:02:14.6]} 16. Qxf3 {[%clk 0:02:32.9]} 16... Qxf3 {[%clk
0:02:14.5]} 17. gxf3 {[%clk 0:02:33.8]} 17... O-O {[%clk 0:02:14.3]} 18. Nb5
{[%clk 0:02:25.9]} 18... Be7 {[%clk 0:02:14]} 19. Bf4 {[%clk 0:02:15.7]} 19...
a6 {[%clk 0:02:12.1]} 20. Nd6 {[%clk 0:02:14.7]} 20... Nd5 {[%clk 0:02:10.4]}
21. Bg3 {[%clk 0:02:09.3]} 21... Nxc3 {[%clk 0:02:09.9]} 22. Nxb7 {[%clk
0:02:10]} 22... Nxd4 {[%clk 0:02:09.5]} 23. Be4 {[%clk 0:02:03.7]} 23... Nxe4
{[%clk 0:02:07.6]} 24. Rxe4 {[%clk 0:02:02]} 24... Nxb3 {[%clk 0:01:57]} 25. Rb1
{[%clk 0:01:57.5]} 25... Nd2 {[%clk 0:01:56.8]} 0-1

[Event "Late-Titled-Tuesday-Blitz-January-16-2024"]
[Site "Chess.com"]
[Date "2024.01.16"]
[Round "6"]
[White "texie1"]
[Black "Agibileg"]
[Result "0-1"]
[WhiteElo "2518"]
[BlackElo "2686"]
[TimeControl "180+1"]
[EndTime "15:00:12 PST"]
[Termination "Agibileg won by resignation"]

1. Nf3 {[%clk 0:02:56.4]} 1... Nf6 {[%clk 0:02:59.8]} 2. c4 {[%clk 0:02:56.9]}
2... g6 {[%clk 0:02:57.8]} 3. d4 {[%clk 0:02:53.5]} 3... Bg7 {[%clk 0:02:57.9]}
4. Nc3 {[%clk 0:02:54.1]} 4... O-O {[%clk 0:02:57.9]} 5. g3 {[%clk 0:02:54.7]}
5... d6 {[%clk 0:02:56.6]} 6. Bg2 {[%clk 0:02:54.5]} 6... Nbd7 {[%clk
0:02:57.2]} 7. O-O {[%clk 0:02:54.7]} 7... e5 {[%clk 0:02:57.8]} 8. e4 {[%clk
0:02:53.4]} 8... exd4 {[%clk 0:02:57.4]} 9. Nxd4 {[%clk 0:02:54.3]} 9... Nc5
{[%clk 0:02:57.3]} 10. h3 {[%clk 0:02:53.4]} 10... Re8 {[%clk 0:02:57.6]} 11.
Re1 {[%clk 0:02:53.3]} 11... Bd7 {[%clk 0:02:57.7]} 12. Be3 {[%clk 0:02:50.9]}
12... Ncxe4 {[%clk 0:02:55]} 13. Nxe4 {[%clk 0:02:42.5]} 13... Nxe4 {[%clk
0:02:55.9]} 14. Qc2 {[%clk 0:02:41.2]} 14... Nxg3 {[%clk 0:02:50.4]} 15. fxg3
{[%clk 0:02:35]} 15... Rxe3 {[%clk 0:02:50]} 16. Rxe3 {[%clk 0:02:35.9]} 16...
Bxd4 {[%clk 0:02:50.1]} 17. Qd3 {[%clk 0:02:36.6]} 17... Qf6 {[%clk 0:02:45.1]}
18. Kh2 {[%clk 0:02:35.3]} 18... Bxe3 {[%clk 0:02:42.4]} 19. Qxe3 {[%clk
0:02:36.2]} 19... Re8 {[%clk 0:02:40.5]} 20. Qxa7 {[%clk 0:02:35.3]} 20... Bc6
{[%clk 0:02:39.4]} 21. Bxc6 {[%clk 0:02:32.4]} 21... bxc6 {[%clk 0:02:39.4]} 22.
Rg1 {[%clk 0:02:33]} 22... Re2+ {[%clk 0:02:36.5]} 23. Rg2 {[%clk 0:02:33.4]}
23... Rxg2+ {[%clk 0:02:33.6]} 24. Kxg2 {[%clk 0:02:32]} 24... Qxb2+ {[%clk
0:02:34.5]} 25. Kf3 {[%clk 0:02:32.8]} 25... Qc3+ {[%clk 0:02:33.7]} 26. Kf2
{[%clk 0:02:31.8]} 26... Qxc4 {[%clk 0:02:24.7]} 27. Qxc7 {[%clk 0:02:31.2]}
27... Qxa2+ {[%clk 0:02:23.9]} 28. Kf3 {[%clk 0:02:30.9]} 28... Qd5+ {[%clk
0:02:22.9]} 29. Kf2 {[%clk 0:02:30.4]} 29... c5 {[%clk 0:02:23.2]} 30. h4 {[%clk
0:02:25.9]} 30... h5 {[%clk 0:02:22]} 31. Ke3 {[%clk 0:02:18.3]} 31... c4 {[%clk
0:02:20.4]} 32. Qb8+ {[%clk 0:02:10.6]} 32... Kh7 {[%clk 0:02:20.2]} 33. Qc7
{[%clk 0:02:09.5]} 33... Qd3+ {[%clk 0:02:19.8]} 34. Kf4 {[%clk 0:02:09.2]}
34... Kg7 {[%clk 0:02:20.1]} 35. Qc6 {[%clk 0:02:02.7]} 35... c3 {[%clk
0:02:17.8]} 36. Qb7 {[%clk 0:02:00.7]} 36... Qd4+ {[%clk 0:02:13.9]} 37. Kf3
{[%clk 0:02:01]} 37... c2 {[%clk 0:02:14.2]} 38. Qc7 {[%clk 0:02:00.7]} 38...
Qd1+ {[%clk 0:02:14.1]} 39. Kf4 {[%clk 0:02:00.7]} 39... c1=Q+ {[%clk
0:02:13.9]} 0-1

[Event "Late-Titled-Tuesday-Blitz-January-16-2024"]
[Site "Chess.com"]
[Date "2024.01.16"]
[Round "6"]
[White "SHIVACalypso"]
[Black "Sic_Transit_GM"]
[Result "0-1"]
[WhiteElo "2432"]
[BlackElo "2667"]
[TimeControl "180+1"]
[EndTime "15:00:31 PST"]
[Termination "Sic_Transit_GM won by resignation"]

1. Nf3 {[%clk 0:03:00.9]} 1... g6 {[%clk 0:03:00.9]} 2. c4 {[%clk 0:02:57.1]}
2... Bg7 {[%clk 0:03:01.3]} 3. g3 {[%clk 0:02:57.7]} 3... e5 {[%clk 0:03:01.4]}
4. Bg2 {[%clk 0:02:58.2]} 4... Nc6 {[%clk 0:03:01.1]} 5. d3 {[%clk 0:02:57.9]}
5... d6 {[%clk 0:03:01.4]} 6. Nc3 {[%clk 0:02:58.4]} 6... f5 {[%clk 0:03:01.6]}
7. O-O {[%clk 0:02:58.9]} 7... h6 {[%clk 0:03:01.9]} 8. Rb1 {[%clk 0:02:54.6]}
8... Nf6 {[%clk 0:03:01.3]} 9. b4 {[%clk 0:02:52.6]} 9... g5 {[%clk 0:03:02]}
10. b5 {[%clk 0:02:52.5]} 10... Ne7 {[%clk 0:03:02.5]} 11. a4 {[%clk 0:02:52.6]}
11... Ng6 {[%clk 0:03:01.9]} 12. Ba3 {[%clk 0:02:51.9]} 12... g4 {[%clk
0:03:01.7]} 13. Nd2 {[%clk 0:02:51.9]} 13... h5 {[%clk 0:03:01.6]} 14. c5 {[%clk
0:02:50.3]} 14... d5 {[%clk 0:03:00.2]} 15. Qb3 {[%clk 0:02:37.9]} 15... c6
{[%clk 0:02:59.5]} 16. bxc6 {[%clk 0:02:34.5]} 16... bxc6 {[%clk 0:03:00.4]} 17.
e4 {[%clk 0:02:30]} 17... fxe4 {[%clk 0:02:59.5]} 18. dxe4 {[%clk 0:02:29.1]}
18... d4 {[%clk 0:02:59.8]} 19. Nc4 {[%clk 0:02:25.1]} 19... O-O {[%clk
0:02:54.4]} 20. Nxe5+ {[%clk 0:02:19.8]} 20... Kh7 {[%clk 0:02:53.6]} 21. Nxg6
{[%clk 0:01:59.2]} 21... Kxg6 {[%clk 0:02:54.5]} 22. e5 {[%clk 0:01:59.7]} 22...
dxc3 {[%clk 0:02:51.5]} 23. exf6 {[%clk 0:01:58.4]} 23... Qxf6 {[%clk
0:02:51.9]} 24. Be4+ {[%clk 0:01:54.7]} 24... Bf5 {[%clk 0:02:49.9]} 25. Bxf5+
{[%clk 0:01:51.8]} 25... Qxf5 {[%clk 0:02:50.8]} 26. Bb4 {[%clk 0:01:45.3]}
26... Rab8 {[%clk 0:02:47.9]} 27. Qc4 {[%clk 0:01:41.8]} 27... Qd5 {[%clk
0:02:44]} 28. Qe2 {[%clk 0:01:07.4]} 28... Rfe8 {[%clk 0:02:32.7]} 29. Qc2+
{[%clk 0:01:04.1]} 29... Qe4 {[%clk 0:02:32.7]} 30. Rfc1 {[%clk 0:01:04.7]}
30... Qxc2 {[%clk 0:02:30.9]} 31. Rxc2 {[%clk 0:01:05.6]} 31... a5 {[%clk
0:02:30.7]} 0-1

[Event "Late-Titled-Tuesday-Blitz-January-16-2024"]
[Site "Chess.com"]
[Date "2024.01.16"]
[Round "6"]
[White "Sjakkerntobi"]
[Black "FredddieCroderg"]
[Result "0-1"]
[WhiteElo "2512"]
[BlackElo "2364"]
[TimeControl "180+1"]
[EndTime "15:01:10 PST"]
[Termination "FredddieCroderg won by resignation"]

1. e4 {[%clk 0:03:00.9]} 1... c6 {[%clk 0:02:59.5]} 2. Nc3 {[%clk 0:03:00.8]}
2... d5 {[%clk 0:02:59.9]} 3. Nf3 {[%clk 0:03:01.7]} 3... Bg4 {[%clk 0:02:58.6]}
4. h3 {[%clk 0:03:01.6]} 4... Bh5 {[%clk 0:02:58]} 5. exd5 {[%clk 0:03:00.2]}
5... cxd5 {[%clk 0:02:57.6]} 6. Bb5+ {[%clk 0:03:00.7]} 6... Nc6 {[%clk
0:02:56.9]} 7. g4 {[%clk 0:03:01.6]} 7... Bg6 {[%clk 0:02:56]} 8. Ne5 {[%clk
0:03:02.5]} 8... Rc8 {[%clk 0:02:55.4]} 9. d4 {[%clk 0:02:42.9]} 9... e6 {[%clk
0:02:54.7]} 10. Qe2 {[%clk 0:02:43]} 10... Bb4 {[%clk 0:02:53.6]} 11. h4 {[%clk
0:02:42.1]} 11... Ne7 {[%clk 0:02:53.1]} 12. h5 {[%clk 0:02:40.6]} 12... Be4
{[%clk 0:02:52.7]} 13. f3 {[%clk 0:02:40.5]} 13... O-O {[%clk 0:02:52.2]} 14.
Bxc6 {[%clk 0:02:38.7]} 14... Nxc6 {[%clk 0:02:49.9]} 15. Nxc6 {[%clk 0:02:36]}
15... Rxc6 {[%clk 0:02:48.5]} 16. fxe4 {[%clk 0:02:33.6]} 16... Rxc3 {[%clk
0:02:48]} 17. bxc3 {[%clk 0:01:46.8]} 17... Bxc3+ {[%clk 0:02:47.8]} 18. Bd2
{[%clk 0:01:46.9]} 18... Bxa1 {[%clk 0:02:45.3]} 19. h6 {[%clk 0:01:47]} 19...
Bxd4 {[%clk 0:02:41.7]} 20. hxg7 {[%clk 0:01:46.8]} 20... Bxg7 {[%clk
0:02:40.6]} 21. Qh2 {[%clk 0:01:38.1]} 21... h6 {[%clk 0:02:31.5]} 22. Bxh6
{[%clk 0:01:36.1]} 22... Qf6 {[%clk 0:02:23.3]} 23. Bxg7 {[%clk 0:01:13.6]}
23... Qxg7 {[%clk 0:02:22.3]} 24. e5 {[%clk 0:01:13.9]} 24... Rc8 {[%clk
0:02:15.3]} 25. Qe2 {[%clk 0:01:11]} 25... Rc4 {[%clk 0:02:11.3]} 26. Kd2 {[%clk
0:01:01.6]} 26... Qg5+ {[%clk 0:01:58.2]} 27. Kd3 {[%clk 0:00:51.4]} 27... Qg6+
{[%clk 0:01:45.5]} 0-1

[Event "Late-Titled-Tuesday-Blitz-January-16-2024"]
[Site "Chess.com"]
[Date "2024.01.16"]
[Round "6"]
[White "Gyulamiryan-koryun"]
[Black "dasatcu90"]
[Result "0-1"]
[WhiteElo "1661"]
[BlackElo "2273"]
[TimeControl "180+1"]
[EndTime "15:01:27 PST"]
[Termination "dasatcu90 won by resignation"]

1. e4 {[%clk 0:02:57.6]} 1... c6 {[%clk 0:02:59.8]} 2. Nc3 {[%clk 0:02:56.1]}
2... d5 {[%clk 0:03:00.7]} 3. Nf3 {[%clk 0:02:55.3]} 3... Bg4 {[%clk 0:03:00.2]}
4. h3 {[%clk 0:02:53.2]} 4... Bxf3 {[%clk 0:03:00.8]} 5. Qxf3 {[%clk 0:02:52.3]}
5... e6 {[%clk 0:03:01.7]} 6. exd5 {[%clk 0:02:52.2]} 6... cxd5 {[%clk
0:03:01.5]} 7. Bb5+ {[%clk 0:02:50.5]} 7... Nc6 {[%clk 0:03:01.3]} 8. O-O {[%clk
0:02:50.3]} 8... Nf6 {[%clk 0:03:01]} 9. d3 {[%clk 0:02:47.2]} 9... Rc8 {[%clk
0:02:56.7]} 10. Re1 {[%clk 0:02:37.6]} 10... Be7 {[%clk 0:02:56.4]} 11. d4
{[%clk 0:02:28.2]} 11... O-O {[%clk 0:02:55.3]} 12. Bxc6 {[%clk 0:02:24.3]}
12... Rxc6 {[%clk 0:02:52.6]} 13. a3 {[%clk 0:02:20.9]} 13... a6 {[%clk
0:02:48.7]} 14. Bf4 {[%clk 0:02:12.3]} 14... b5 {[%clk 0:02:47.3]} 15. Rac1
{[%clk 0:02:04.8]} 15... Qc8 {[%clk 0:02:42]} 16. Be5 {[%clk 0:02:03]} 16... Nd7
{[%clk 0:02:33.5]} 17. Re2 {[%clk 0:01:51.5]} 17... Nxe5 {[%clk 0:02:32.5]} 18.
dxe5 {[%clk 0:01:51.1]} 18... Rd8 {[%clk 0:02:09.2]} 19. Nd1 {[%clk 0:01:32.9]}
19... Bg5 {[%clk 0:01:56.5]} 20. Ne3 {[%clk 0:01:26.2]} 20... d4 {[%clk
0:01:54.7]} 21. Qg4 {[%clk 0:01:18.2]} 21... Bh6 {[%clk 0:01:40.2]} 22. f4
{[%clk 0:01:15.1]} 22... dxe3 {[%clk 0:01:40.4]} 23. Rxe3 {[%clk 0:01:09.8]}
23... Rxc2 {[%clk 0:01:37.4]} 24. Rc3 {[%clk 0:00:56]} 24... Rxc1+ {[%clk
0:01:34.8]} 25. Rxc1 {[%clk 0:00:55.2]} 25... Qxc1+ {[%clk 0:01:34.1]} 26. Kh2
{[%clk 0:00:55.7]} 26... Qxf4+ {[%clk 0:01:33.7]} 27. Qxf4 {[%clk 0:00:54.9]}
27... Bxf4+ {[%clk 0:01:34.3]} 28. g3 {[%clk 0:00:54.8]} 28... Rd2+ {[%clk
0:01:33.4]} 0-1

[Event "Late-Titled-Tuesday-Blitz-January-16-2024"]
[Site "Chess.com"]
[Date "2024.01.16"]
[Round "6"]
[White "VladimirKramnik"]
[Black "Korchmar_Vasiliy"]
[Result "1-0"]
[WhiteElo "2918"]
[BlackElo "2739"]
[TimeControl "180+1"]
[EndTime "15:01:50 PST"]
[Termination "VladimirKramnik won by resignation"]

1. e4 {[%clk 0:03:00.9]} 1... c5 {[%clk 0:02:59.6]} 2. Nf3 {[%clk 0:03:00.6]}
2... d6 {[%clk 0:03:00]} 3. d4 {[%clk 0:02:58.9]} 3... cxd4 {[%clk 0:03:00.9]}
4. Nxd4 {[%clk 0:02:58.9]} 4... Nf6 {[%clk 0:03:01.6]} 5. Nc3 {[%clk 0:02:59]}
5... Nc6 {[%clk 0:03:02.1]} 6. Bg5 {[%clk 0:02:56.8]} 6... Bd7 {[%clk
0:03:00.1]} 7. Qd2 {[%clk 0:02:56.7]} 7... a6 {[%clk 0:03:00.4]} 8. O-O-O {[%clk
0:02:56.5]} 8... e6 {[%clk 0:03:01]} 9. f3 {[%clk 0:02:55.2]} 9... Be7 {[%clk
0:02:58.3]} 10. Kb1 {[%clk 0:02:53.3]} 10... Nxd4 {[%clk 0:02:56.6]} 11. Qxd4
{[%clk 0:02:53.3]} 11... Qc7 {[%clk 0:02:54.2]} 12. h4 {[%clk 0:02:51.8]} 12...
b5 {[%clk 0:02:52]} 13. Qd2 {[%clk 0:02:50.2]} 13... b4 {[%clk 0:02:01.7]} 14.
Ne2 {[%clk 0:02:49.5]} 14... h6 {[%clk 0:01:54.3]} 15. Be3 {[%clk 0:02:48.2]}
15... e5 {[%clk 0:01:43.8]} 16. g4 {[%clk 0:02:42]} 16... Be6 {[%clk 0:01:43.6]}
17. Ng3 {[%clk 0:02:36.5]} 17... Rc8 {[%clk 0:01:06.8]} 18. Nf5 {[%clk 0:02:24]}
18... d5 {[%clk 0:00:58]} 19. Nxg7+ {[%clk 0:02:15.4]} 19... Kf8 {[%clk
0:00:54.9]} 20. Bxh6 {[%clk 0:02:06]} 20... Rxh6 {[%clk 0:00:25.2]} 21. Nxe6+
{[%clk 0:02:05.9]} 21... fxe6 {[%clk 0:00:25.9]} 22. Qxh6+ {[%clk 0:02:05.6]}
22... Kf7 {[%clk 0:00:26.7]} 23. Bd3 {[%clk 0:01:59.5]} 23... a5 {[%clk
0:00:21.8]} 24. g5 {[%clk 0:01:55.8]} 24... Ng8 {[%clk 0:00:12.2]} 25. Qh7+
{[%clk 0:01:53.5]} 25... Kf8 {[%clk 0:00:12.3]} 26. exd5 {[%clk 0:01:43.9]} 1-0